bitfinex-derivatives/quotes_ETHF0:USTF0_20260128
["timestamp","ask_amount","ask_price","bid_price","bid_amount"]
[1769636769401,3.16727716,3018.7,3017.6,0.13819127]
[1769636769601,3.16727716,3018.6,3017.6,0.13819127]
[1769636769797,3.16727716,3018.5,3017.6,0.13819127]
[1769636769998,0.13739409,3018.7,3017.6,0.13819127]
[1769636770299,3.16747412,3018.6,3017.6,0.13819127]
[1769636770502,3.16753353,3018.5,3017.6,0.13819127]
[1769636770700,0.13739409,3018.7,3017.6,0.13819127]
[1769636770896,3.16753983,3018.6,3017.6,0.13819127]
[1769636771102,3.16753983,3018.5,3017.6,0.13819127]
[1769636771401,0.13739409,3018.7,3017.6,0.13819127]
[1769636771599,3.16757681,3018.6,3017.6,0.13819127]
[1769636771798,3.16757681,3018.5,3017.6,0.13819127]
[1769636772001,0.13739409,3018.7,3017.6,0.13819127]
[1769636772195,3.16762085,3018.6,3017.6,0.13819127]
[1769636772394,3.16762085,3018.5,3017.6,0.13819127]
[1769636772592,0.13739409,3018.6,3017.6,0.13819127]
[1769636772903,3.16773763,3018.5,3017.6,0.13819127]
[1769636773106,0.13739409,3018.6,3017.6,0.13819127]
[1769636773306,3.16786037,3018.5,3017.6,0.13819127]
[1769636773500,0.13739409,3018.6,3017.6,0.13819127]
[1769636773705,3.16789541,3018.5,3017.6,0.13819127]
[1769636774004,0.13739409,3018.6,3017.6,0.13819127]
[1769636774801,1.98764991,3018.8,3017.6,0.13819127]
[1769636775001,5.15568994,3018.8,3017.6,0.13819127]
[1769636775904,3.16804003,3018.8,3017.6,0.13819127]
[1769636776107,29.79730966,3019.4,3017.8,0.13819127]
[1769636776305,0.13739409,3019.5,3018.0,0.13819127]
[1769636776505,29.93470375,3019.7,3018.1,0.13819127]
[1769636776700,29.93470375,3019.7,3018.3,0.13819127]
[1769636776701,0.13739409,3019.7,3018.3,0.13819127]
[1769636776999,0.0041775,3020.3,3018.3,0.13819127]
[1769636777000,29.79730966,3020.0,3018.4,0.13819127]
[1769636777202,0.13739409,3019.9,3018.4,0.13819127]
[1769636789421,0.14727921,3020.2,3018.8,0.14781825]
[1769636789627,0.0041775,3020.3,3019.0,0.14781825]
[1769636791631,0.0041775,3020.3,3019.5,0.14781825]
[1769636791827,0.0041775,3020.3,3019.6,0.14781825]
[1769636792930,0.14727921,3020.7,3019.9,0.14781825]
[1769636793834,0.14727921,3021.0,3019.9,0.14781825]
[1769636794038,0.15037773,3021.0,3019.9,0.15013629]
[1769636797039,0.14727921,3021.8,3020.7,0.14781825]
[1769636797930,0.15023138,3021.8,3020.7,0.14781825]
[1769636798132,0.14727921,3021.6,3020.7,0.14781825]
[1769636804943,0.14727921,3021.6,3020.7,0.14781825]
[1769636809237,0.15023138,3021.8,3020.7,0.14781825]
[1769636810745,0.00295217,3021.8,3020.7,0.14781825]
[1769636811145,0.00295217,3021.8,3020.7,0.31357825]
[1769636811346,0.14727921,3022.2,3020.9,0.14781825]
[1769636811847,0.16565,3022.7,3020.9,0.14781825]
[1769636811848,0.14727921,3022.6,3020.9,0.14781825]
[1769636812345,0.15069657,3022.6,3020.9,0.14781825]
[1769636815452,0.15069657,3022.6,3021.0,0.13572643]
[1769636818144,0.15069657,3022.6,3021.1,0.13572643]
[1769636819447,0.15069657,3022.6,3021.2,0.13572643]
[1769636821150,0.00341736,3022.6,3021.2,0.13572643]
[1769636821352,0.13902952,3023.2,3021.9,0.13572643]
[1769636821552,0.13902952,3022.5,3021.7,0.13572643]
[1769636821855,1.05319759,3022.3,3021.7,0.13572643]
[1769636822054,0.13902952,3022.3,3021.7,0.13572643]
[1769636822250,0.13902952,3022.3,3021.4,2.07872643]
[1769636822447,0.14276718,3022.3,3021.4,2.07872643]
[1769636823359,0.14276718,3022.3,3021.5,0.13572643]
[1769636824956,0.00373766,3022.3,3021.6,1.05319759]
[1769636825156,0.13902952,3022.8,3022.1,0.13572643]
[1769636825853,0.13902952,3022.8,3021.9,0.13572643]
[1769636826054,0.14318905,3022.8,3021.9,0.13964724]
[1769636826259,0.13902952,3022.6,3021.9,0.00392081]
[1769636826754,0.13902952,3022.4,3021.9,0.00392081]
[1769636827554,0.13902952,3022.0,3021.4,1.943]
[1769636827754,0.13902952,3022.0,3021.3,3.44972643]
[1769636828351,0.13902952,3022.0,3021.3,3.314]
[1769636828553,0.13902952,3022.0,3020.9,2.99619759]
[1769636828554,0.10598048,3021.6,3020.7,0.13572643]
[1769636829155,1.05319759,3021.9,3020.7,0.13572643]
[1769636829561,0.16567,3022.4,3020.8,0.14921872]
[1769636837357,3.06830879,3022.3,3020.8,0.14921872]
[1769636837550,0.16567,3022.4,3020.8,0.14921872]
[1769636837755,3.06830879,3022.3,3020.8,0.14921872]
[1769636837956,1.98090532,3022.6,3020.8,0.14921872]
[1769636838156,3.06822081,3022.5,3020.8,0.14921872]
[1769636838357,3.06822081,3022.4,3020.8,0.14921872]
[1769636838552,1.98090532,3022.6,3020.9,0.15337115]
[1769636838758,3.06930564,3022.5,3020.9,0.15337115]
[1769636838958,3.06930564,3022.4,3020.9,0.15337115]
[1769636839159,1.98090532,3022.7,3020.9,0.15337115]
[1769636839363,1.98090532,3022.6,3020.9,0.15337115]
[1769636839564,3.07054697,3022.5,3020.9,0.15337115]
[1769636839865,3.07054697,3022.4,3020.9,0.15337115]
[1769636840065,1.98346384,3022.6,3020.9,0.15337115]
[1769636842265,1.98346384,3022.5,3020.9,0.15337115]
[1769636846266,1.98346384,3022.6,3020.9,0.15337115]
[1769636847266,5.05404224,3022.6,3020.9,0.15337115]
[1769636847563,3.0705784,3022.5,3020.9,0.15337115]
[1769636847763,3.0705784,3022.4,3020.9,0.15337115]
[1769636847967,3.0705784,3022.3,3020.9,0.15337115]
[1769636848167,1.98346384,3022.6,3020.9,0.15337115]
[1769636848570,5.17093599,3022.6,3020.9,0.15337115]
[1769636848772,5.17093599,3022.6,3020.9,0.31912115]
[1769636849075,5.17093599,3022.6,3021.0,0.15293851]
[1769636850468,3.18747215,3022.5,3021.2,0.15293851]
[1769636850659,1.98762337,3022.8,3021.2,0.15293851]
[1769636850861,3.18729744,3022.7,3021.2,0.15293851]
[1769636851063,3.18729744,3022.6,3021.2,0.15293851]
[1769636851368,0.00415953,3022.8,3021.2,0.15293851]
[1769636851571,3.18720817,3022.7,3021.4,0.15294902]
[1769636851762,3.18720817,3022.6,3021.4,0.15294902]
[1769636851957,0.00415953,3022.8,3021.4,0.15294902]
[1769636852164,3.18713814,3022.7,3021.5,0.15294902]
[1769636852370,0.00415953,3022.8,3021.5,0.15294902]
[1769636852563,3.18726753,3022.7,3021.5,0.15294902]
[1769636852759,0.00415953,3022.8,3021.5,0.15294902]
[1769636852969,3.18725663,3022.7,3021.5,0.15294902]
[1769636853171,0.00415953,3022.8,3021.5,0.15294902]
[1769636853467,3.1873472,3022.7,3021.5,0.15294902]
[1769636853668,0.00415953,3022.8,3021.5,0.15294902]
[1769636853869,3.1873472,3022.7,3021.5,0.15294902]
[1769636854172,0.00415953,3022.8,3021.5,0.15294902]
[1769636854364,3.18747281,3022.7,3021.5,0.15294902]
[1769636854564,0.00415953,3022.8,3021.5,0.15294902]
[1769636854763,3.18747315,3022.7,3021.5,0.15294902]
[1769636854965,0.00415953,3022.8,3021.5,0.15294902]
[1769636855165,3.18747225,3022.7,3021.5,0.15294902]
[1769636855369,0.00415953,3022.8,3021.5,0.15294902]
[1769636855671,3.18783627,3022.7,3021.5,0.15294902]
[1769636855872,0.00415953,3022.8,3021.5,0.15294902]
[1769636856172,3.18783592,3022.7,3021.5,0.15294902]
[1769636856371,0.00415953,3022.8,3021.5,0.15294902]
[1769636856564,3.18824409,3022.7,3021.5,0.15294902]
[1769636856768,0.00415953,3022.8,3021.5,0.15294902]
[1769636856969,3.1882452,3022.7,3021.5,0.15294902]
[1769636857162,0.00415953,3022.8,3021.5,0.15294902]
[1769636859774,3.18788829,3022.7,3021.5,0.15294902]
[1769636859971,0.00415953,3022.8,3021.5,0.15294902]
[1769636860172,3.18789874,3022.7,3021.5,0.15294902]
[1769636860373,0.00415953,3022.8,3021.5,0.15294902]
[1769636863278,3.18745692,3022.7,3021.5,0.15294902]
[1769636863475,0.00415953,3022.8,3021.5,0.15294902]
[1769636863674,3.18751529,3022.7,3021.5,0.15294902]
[1769636863978,0.00415953,3022.8,3021.5,0.15294902]
[1769636864177,3.18751546,3022.7,3021.5,0.15294902]
[1769636864378,0.00415953,3022.8,3021.5,0.15294902]
[1769636864578,3.18773084,3022.7,3021.5,0.15294902]
[1769636864878,0.00415953,3022.8,3021.5,0.15294902]
[1769636865185,1.0529324,3022.6,3021.4,1.943]
[1769636865479,1.0529324,3022.6,3021.4,2.09404119]
[1769636865680,0.00415953,3022.8,3021.5,0.15104119]
[1769636865882,3.18795738,3022.7,3021.5,0.15104119]
[1769636866088,3.18795738,3022.6,3021.5,0.15104119]
[1769636866284,0.00415953,3022.8,3021.5,0.15104119]
[1769636866484,3.20952193,3022.7,3021.5,0.15104119]
[1769636866787,3.20952193,3022.6,3021.5,0.15104119]
[1769636866988,0.00415953,3022.8,3021.5,0.15104119]
[1769636867191,3.20952247,3022.7,3021.5,0.15104119]
[1769636867391,3.20952247,3022.6,3021.5,0.15104119]
[1769636867688,1.98762337,3022.8,3021.5,0.15104119]
[1769636867989,3.20983413,3022.7,3021.5,0.15104119]
[1769636868187,3.20983413,3022.6,3021.5,0.15104119]
[1769636868391,1.98762337,3022.8,3021.5,0.15104119]
[1769636868580,3.21010221,3022.7,3021.5,0.15104119]
[1769636868781,3.21010221,3022.6,3021.5,0.15104119]
[1769636868980,1.98762337,3022.8,3021.5,0.15104119]
[1769636869176,3.21010221,3022.7,3021.5,0.15104119]
[1769636869477,3.21010221,3022.6,3021.5,0.15104119]
[1769636869681,1.98762337,3022.8,3021.5,0.15104119]
[1769636869884,3.21029839,3022.7,3021.5,0.15104119]
[1769636870087,3.21029839,3022.6,3021.5,0.15104119]
[1769636870387,1.98762337,3022.8,3021.5,0.15104119]
[1769636870578,3.21050506,3022.7,3021.5,0.15104119]
[1769636870777,3.21050506,3022.6,3021.5,0.15104119]
[1769636870989,0.00415953,3022.8,3021.5,0.15104119]
[1769636871291,5.19800778,3022.8,3021.5,0.15104119]
[1769636871489,3.21038441,3022.7,3021.5,0.15104119]
[1769636872392,3.21038441,3022.6,3021.5,0.15104119]
[1769636872590,1.98762337,3022.8,3021.5,0.15104119]
[1769636872793,3.21077195,3022.7,3021.5,0.15104119]
[1769636872993,3.21077195,3022.6,3021.5,0.15104119]
[1769636873195,1.98762337,3022.8,3021.5,0.15104119]
[1769636873388,3.21100897,3022.7,3021.5,0.15104119]
[1769636873587,3.21100897,3022.6,3021.5,0.15104119]
[1769636873786,0.00415953,3022.8,3021.5,0.15104119]
[1769636873986,3.21095061,3022.7,3021.5,0.15104119]
[1769636874293,3.21095061,3022.6,3021.5,0.15104119]
[1769636874593,1.98762337,3022.8,3021.5,0.15104119]
[1769636874794,3.21121887,3022.7,3021.5,0.15104119]
[1769636874988,3.21121887,3022.6,3021.5,0.15104119]
[1769636875294,1.98762337,3022.8,3021.5,0.15104119]
[1769636875490,3.21151709,3022.7,3021.5,0.15104119]
[1769636875693,3.21151709,3022.6,3021.5,0.15104119]
[1769636875888,1.98762337,3022.8,3021.5,0.15104119]
[1769636876089,3.21151709,3022.7,3021.5,0.15104119]
[1769636876392,3.21151709,3022.6,3021.5,0.15104119]
[1769636876592,1.98762337,3022.8,3021.5,0.15104119]
[1769636876791,3.21187777,3022.7,3021.5,0.15104119]
[1769636876992,3.21187777,3022.6,3021.5,0.15104119]
[1769636877293,1.98762337,3022.8,3021.5,0.15104119]
[1769636877492,3.21230627,3022.7,3021.5,0.15104119]
[1769636877794,3.21230627,3022.6,3021.5,0.15104119]
[1769636877995,1.98762337,3022.8,3021.5,0.15104119]
[1769636878288,3.21230627,3022.7,3021.5,0.15104119]
[1769636878494,3.21230627,3022.6,3021.5,0.15104119]
[1769636878696,1.98762337,3022.8,3021.5,0.15104119]
[1769636878895,3.21283275,3022.7,3021.5,0.15104119]
[1769636879094,3.21283275,3022.6,3021.5,0.15104119]
[1769636879395,1.98762337,3022.8,3021.5,0.15104119]
[1769636879598,3.21343794,3022.7,3021.5,0.15104119]
[1769636879801,3.21343794,3022.6,3021.5,0.15104119]
[1769636880006,1.98762337,3022.8,3021.5,0.15104119]
[1769636880202,3.21341904,3022.7,3021.5,0.15104119]
[1769636880491,3.21341904,3022.6,3021.5,0.15104119]
[1769636880697,0.00415953,3022.8,3021.5,0.15104119]
[1769636880897,3.21412766,3022.7,3021.5,0.15104119]
[1769636881196,3.21412766,3022.6,3021.5,0.15104119]
[1769636881400,0.00415953,3022.8,3021.5,0.15104119]
[1769636881597,3.21412749,3022.7,3021.5,0.15104119]
[1769636881895,3.21412749,3022.6,3021.5,0.15104119]
[1769636882100,0.00415953,3022.8,3021.5,0.15104119]
[1769636882299,3.2141089,3022.7,3021.5,0.15104119]
[1769636882498,0.00415953,3022.8,3021.5,0.15104119]
[1769636882800,3.21403934,3022.7,3021.5,0.15104119]
[1769636882999,3.21403889,3022.6,3021.5,0.15104119]
[1769636883200,0.00415953,3022.8,3021.5,0.15104119]
[1769636883400,3.21397041,3022.7,3021.5,0.15104119]
[1769636883600,0.00415953,3022.8,3021.5,0.15104119]
[1769636883800,3.21397041,3022.7,3021.5,0.15104119]
[1769636884003,0.00415953,3022.8,3021.5,0.15104119]
[1769636884195,3.21397041,3022.7,3021.5,0.15104119]
[1769636884500,0.00415953,3022.8,3021.5,0.15104119]
[1769636884700,3.21390713,3022.7,3021.5,0.15104119]
[1769636884902,0.00415953,3022.8,3021.5,0.15104119]
[1769636885103,3.2138837,3022.7,3021.5,0.15104119]
[1769636885303,0.00415953,3022.8,3021.5,0.15104119]
[1769636885495,3.21370849,3022.7,3021.5,0.15104119]
[1769636885801,0.00415953,3022.8,3021.5,0.15104119]
[1769636885993,3.21371922,3022.7,3021.5,0.15104119]
[1769636886194,0.00415953,3022.8,3021.5,0.15104119]
[1769636886398,3.21361037,3022.7,3021.5,0.15104119]
[1769636886598,0.00415953,3022.8,3021.5,0.15104119]
[1769636886904,3.21361112,3022.7,3021.5,0.15104119]
[1769636887202,0.00415953,3022.8,3021.5,0.15104119]
[1769636887391,5.20122373,3022.8,3021.5,0.15104119]
[1769636887593,3.21360036,3022.7,3021.5,0.15104119]
[1769636887801,5.1970642,3022.7,3021.5,0.15104119]
[1769636888001,3.21360036,3022.6,3021.5,0.15104119]
[1769636888206,3.21360036,3022.5,3021.5,0.15104119]
[1769636888398,1.98346384,3022.7,3021.5,0.15104119]
[1769636888804,3.21397259,3022.6,3021.5,0.15104119]
[1769636889106,3.21397259,3022.5,3021.5,0.15104119]
[1769636889296,1.98751158,3022.7,3021.5,0.15104119]
[1769636889607,3.21388884,3022.6,3021.5,0.15104119]
[1769636889805,3.21388884,3022.5,3021.5,0.15104119]
[1769636890007,3.04084203,3022.7,3021.4,1.943]
[1769636890208,3.21389556,3022.6,3021.4,1.943]
[1769636890399,3.21389556,3022.5,3021.4,2.09927156]
[1769636890694,3.04084203,3022.7,3021.4,2.09927156]
[1769636890897,3.21381174,3022.6,3021.4,2.09927156]
[1769636891099,3.21381174,3022.5,3021.4,2.09927156]
[1769636891298,3.04084203,3022.7,3021.4,2.09927156]
[1769636891501,3.21375578,3022.6,3021.4,2.09927156]
[1769636891709,3.04084203,3022.7,3021.4,2.09927156]
[1769636891710,3.21375578,3022.5,3021.4,2.09927156]
[1769636892009,3.04084203,3022.7,3021.4,2.09927156]
[1769636892306,3.21375604,3022.6,3021.4,2.09927156]
[1769636892497,3.21375604,3022.5,3021.4,2.09927156]
[1769636892703,3.04084203,3022.7,3021.4,2.09927156]
[1769636892906,3.21394952,3022.6,3021.4,2.09927156]
[1769636893105,3.21394952,3022.5,3021.4,2.09927156]
[1769636893305,3.04084203,3022.7,3021.4,2.09927156]
[1769636893606,3.2140281,3022.6,3021.4,2.09927156]
[1769636893804,3.2140281,3022.5,3021.4,2.09927156]
[1769636894005,3.04084203,3022.7,3021.4,2.09927156]
[1769636894206,3.21402793,3022.6,3021.4,2.09927156]
[1769636894409,3.21402793,3022.5,3021.4,2.09927156]
[1769636894609,3.04084203,3022.7,3021.4,1.943]
[1769636894811,3.21398049,3022.6,3021.4,1.943]
[1769636895007,3.21398049,3022.5,3021.4,1.943]
[1769636895208,3.04084203,3022.7,3021.4,1.943]
[1769636895408,3.21393419,3022.6,3021.4,1.943]
[1769636895707,3.21393419,3022.5,3021.4,1.943]
[1769636895909,3.04084203,3022.7,3021.4,1.943]
[1769636896113,3.21613887,3022.6,3021.4,1.943]
[1769636896310,3.21613887,3022.5,3021.4,1.943]
[1769636896510,3.21613887,3022.4,3021.4,1.943]
[1769636896712,3.04084203,3022.7,3021.4,1.943]
[1769636896912,3.21611317,3022.6,3021.4,1.943]
[1769636897212,3.21611317,3022.5,3021.5,0.15600844]
[1769636897513,3.21611317,3022.4,3021.5,0.15600844]
[1769636897809,1.0532527,3022.4,3021.5,0.15600844]
[1769636901312,1.0532527,3022.6,3021.5,0.15600844]
[1769636901610,3.21584838,3022.5,3021.5,0.15600844]
[1769636901809,1.0532527,3022.6,3021.5,0.15600844]
[1769636902009,3.21584856,3022.5,3021.5,0.15600844]
[1769636902208,1.0532527,3022.6,3021.5,0.15600844]
[1769636902409,3.21583893,3022.5,3021.5,0.15600844]
[1769636902605,1.0532527,3022.6,3021.5,0.15600844]
[1769636902810,3.21579853,3022.5,3021.5,0.15600844]
[1769636903109,1.0532527,3022.6,3021.5,0.15600844]
[1769636903308,3.21579887,3022.5,3021.5,0.15600844]
[1769636903518,1.0532527,3022.6,3021.5,0.15600844]
[1769636903714,3.21579486,3022.5,3021.5,0.15600844]
[1769636903916,1.0532527,3022.6,3021.5,0.15600844]
[1769636904110,3.21579486,3022.5,3021.5,0.15600844]
[1769636904310,1.0532527,3022.6,3021.5,0.15600844]
[1769636904604,3.21579261,3022.5,3021.5,0.15600844]
[1769636904804,1.0532527,3022.6,3021.5,0.15600844]
[1769636905018,3.21579261,3022.5,3021.5,0.15600844]
[1769636905215,1.0532527,3022.6,3021.5,0.15600844]
[1769636905416,3.21579192,3022.5,3021.5,0.15600844]
[1769636905619,1.0532527,3022.6,3021.5,0.15600844]
[1769636905818,3.21579174,3022.5,3021.5,0.15600844]
[1769636906010,1.0532527,3022.6,3021.5,0.15600844]
[1769636906310,3.21579212,3022.5,3021.5,0.15600844]
[1769636906507,1.0532527,3022.6,3021.5,0.15600844]
[1769636906811,3.21579207,3022.5,3021.5,0.15600844]
[1769636907011,1.0532527,3022.6,3021.5,0.15600844]
[1769636907310,3.21579241,3022.5,3021.5,0.15600844]
[1769636907611,1.0532527,3022.6,3021.5,0.15600844]
[1769636907811,3.21579339,3022.5,3021.5,0.15600844]
[1769636908113,1.0532527,3022.6,3021.5,0.15600844]
[1769636908411,3.21579555,3022.5,3021.5,0.15600844]
[1769636908609,1.0532527,3022.6,3021.5,0.15600844]
[1769636908808,3.21579555,3022.5,3021.5,0.15600844]
[1769636909010,1.0532527,3022.6,3021.5,0.15600844]
[1769636909220,3.21579625,3022.5,3021.5,0.15600844]
[1769636909514,1.0532527,3022.6,3021.5,0.15600844]
[1769636909719,3.21580196,3022.5,3021.6,0.15605722]
[1769636910020,3.21057381,3022.8,3021.6,0.15605722]
[1769636910221,5.20329587,3022.7,3021.6,0.15605722]
[1769636910413,3.21578429,3022.6,3021.6,0.15605722]
[1769636910613,3.21578429,3022.5,3021.6,0.15605722]
[1769636910814,1.98751158,3022.7,3021.6,0.15605722]
[1769636911014,3.21584019,3022.6,3021.6,0.15605722]
[1769636911217,3.21584019,3022.5,3021.6,0.15605722]
[1769636911509,1.98751158,3022.7,3021.6,0.15605722]
[1769636911711,3.21597304,3022.6,3021.6,0.15605722]
[1769636911912,3.21597304,3022.5,3021.6,0.15605722]
[1769636912111,3.21057381,3022.8,3021.6,0.15605722]
[1769636912312,3.2159495,3022.7,3021.6,0.15605722]
[1769636912523,3.2159495,3022.6,3021.6,0.15605722]
[1769636912718,3.2159495,3022.5,3021.6,0.15605722]
[1769636912922,1.98751158,3022.7,3021.6,0.15605722]
[1769636913224,3.21613687,3022.6,3021.6,0.15605722]
[1769636913519,3.21613687,3022.5,3021.6,0.15605722]
[1769636913720,1.98751158,3022.7,3021.6,0.15605722]
[1769636913922,3.21630796,3022.6,3021.6,0.15605722]
[1769636914222,3.21630796,3022.5,3021.6,0.15605722]
[1769636914420,1.98751158,3022.7,3021.6,0.15605722]
[1769636914616,3.21650911,3022.6,3021.6,0.15605722]
[1769636914816,3.21650911,3022.5,3021.6,0.15605722]
[1769636915016,1.98751158,3022.7,3021.6,0.15605722]
[1769636915222,3.21651585,3022.6,3021.6,0.15605722]
[1769636915518,3.21651585,3022.5,3021.6,0.15605722]
[1769636915717,1.98751158,3022.7,3021.6,0.15605722]
[1769636915914,3.21690393,3022.6,3021.6,0.15605722]
[1769636916114,3.21690393,3022.5,3021.6,0.15605722]
[1769636916314,3.21690393,3022.4,3021.6,0.15605722]
[1769636916520,3.04076428,3022.6,3021.4,2.10232089]
[1769636916724,3.21762627,3022.5,3021.4,2.10232089]
[1769636917021,3.21762627,3022.4,3021.5,0.15945972]
[1769636917224,3.04076428,3022.6,3021.5,0.15945972]
[1769636917424,3.21791318,3022.5,3021.5,0.15945972]
[1769636917623,3.21791318,3022.4,3021.5,0.15945972]
[1769636917921,3.04076428,3022.6,3021.5,0.15945972]
[1769636918126,3.21791249,3022.5,3021.5,0.15945972]
[1769636918319,3.21791249,3022.4,3021.5,0.15945972]
[1769636918617,3.04076428,3022.6,3021.5,0.15945972]
[1769636918812,3.21790171,3022.5,3021.5,0.15945972]
[1769636919019,3.21790171,3022.4,3021.5,0.15945972]
[1769636919223,3.04076428,3022.6,3021.5,0.15945972]
[1769636919422,3.21787858,3022.5,3021.5,0.15945972]
[1769636919621,3.21787858,3022.4,3021.5,0.15945972]
[1769636919828,3.04076428,3022.6,3021.5,0.15945972]
[1769636920027,3.217875,3022.5,3021.5,0.15945972]
[1769636920326,3.217875,3022.4,3021.5,0.15945972]
[1769636920527,3.04076428,3022.6,3021.5,0.15945972]
[1769636920727,3.21786363,3022.5,3021.6,0.1594747]
[1769636920926,1.98751158,3022.7,3021.6,0.1594747]
[1769636921627,5.20517479,3022.7,3021.6,0.1594747]
[1769636921829,3.21766321,3022.6,3021.6,0.1594747]
[1769636922028,3.21766321,3022.5,3021.6,0.1594747]
[1769636922330,1.98751158,3022.7,3021.6,0.1594747]
[1769636922626,5.20517345,3022.7,3021.6,0.1594747]
[1769636923029,1.0532527,3022.6,3021.6,0.1594747]
[1769636923230,3.21766187,3022.5,3021.6,0.1594747]
[1769636924332,1.0532527,3022.4,3021.4,2.10271963]
[1769636925633,1.0532527,3022.4,3021.5,0.15968126]
[1769636927836,1.98751158,3022.7,3021.5,0.15968126]
[1769636928722,5.19766194,3022.7,3021.5,0.15968126]
[1769636930939,1.0532527,3022.6,3021.5,0.15968126]
[1769636931230,3.21015036,3022.5,3021.5,0.15968126]
[1769636936133,3.21015036,3022.4,3021.5,0.15968126]
[1769636936334,1.0532527,3022.6,3021.5,0.15968126]
[1769636936635,3.21023185,3022.5,3021.5,0.15968126]
[1769636936833,3.21023185,3022.4,3021.5,0.15968126]
[1769636937034,1.0532527,3022.6,3021.5,0.15968126]
[1769636937335,3.21027488,3022.5,3021.5,0.15968126]
[1769636937535,3.21027488,3022.4,3021.5,0.15968126]
[1769636937739,1.98751158,3022.7,3021.6,0.16161878]
[1769636937935,5.19775058,3022.7,3021.6,0.16161878]
[1769636938136,30.85472189,3022.8,3021.6,0.16161878]
[1769636938137,6.25100328,3022.6,3021.6,0.16161878]
[1769636938336,3.210239,3022.5,3021.6,0.16161878]
[1769636938737,6.25100328,3022.6,3021.6,0.16161878]
[1769636938938,3.210239,3022.5,3021.4,1.943]
[1769636939139,3.210239,3022.5,3021.4,2.10422526]
[1769636939641,3.210239,3022.5,3021.5,0.16122526]
[1769636940944,1.0532527,3022.2,3021.4,1.943]
[1769636941335,3.04076428,3022.6,3021.4,2.10327303]
[1769636941542,3.21030383,3022.5,3021.6,0.16027303]
[1769636941734,3.21030383,3022.4,3021.6,0.16027303]
[1769636941935,1.98751158,3022.7,3021.6,0.16027303]
[1769636942633,5.19768596,3022.7,3021.6,0.16027303]
[1769636943244,5.19768596,3022.7,3021.8,0.16131374]
[1769636943437,3.21017438,3022.6,3021.8,0.16131374]
[1769636943742,3.21017438,3022.5,3021.8,0.16131374]
[1769636943944,3.21016606,3022.4,3021.8,0.16131374]
[1769636944143,1.98751158,3022.7,3021.8,0.16131374]
[1769636944744,5.19771578,3022.7,3021.8,0.16131374]
[1769636947446,1.0532527,3022.6,3021.8,0.16131374]
[1769636947647,3.2102042,3022.5,3021.5,0.16079931]
[1769636947944,3.2102042,3022.4,3021.5,0.16079931]
[1769636948145,3.04076428,3022.6,3021.5,0.16079931]
[1769636948348,3.21037805,3022.5,3021.5,0.16079931]
[1769636948537,3.21037805,3022.4,3021.5,0.16079931]
[1769636948740,3.04076428,3022.6,3021.5,0.16079931]
[1769636948940,3.21037229,3022.5,3021.5,0.16079931]
[1769636949239,3.21037229,3022.4,3021.5,0.16079931]
[1769636949438,3.04076428,3022.6,3021.5,0.16079931]
[1769636949637,3.21035647,3022.5,3021.5,0.16079931]
[1769636949839,3.21035647,3022.4,3021.5,0.16079931]
[1769636950042,3.04076428,3022.6,3021.5,0.16079931]
[1769636950254,3.21035688,3022.5,3021.5,0.16079931]
[1769636950446,3.21035688,3022.4,3021.5,0.16079931]
[1769636950643,1.98751158,3022.6,3021.6,0.1611107]
[1769636952150,3.21027584,3022.5,3021.6,0.1611107]
[1769636952355,3.21027584,3022.4,3021.6,0.1611107]
[1769636952541,1.98751158,3022.7,3021.6,0.1611107]
[1769636962658,5.19780341,3022.7,3021.6,0.1611107]
[1769636962861,3.21029183,3022.6,3021.6,0.1611107]
[1769636963057,3.21029183,3022.5,3021.6,0.1611107]
[1769636963357,1.98751158,3022.7,3021.6,0.1611107]
[1769636989887,1.98751158,3022.7,3021.3,0.16091001]
[1769636990086,1.98751158,3022.6,3021.3,0.16091001]
[1769636990386,3.20881848,3022.6,3021.3,0.16091001]
[1769636990587,3.20881848,3022.5,3021.3,0.16091001]
[1769636990777,3.20881848,3022.4,3021.3,0.16091001]
[1769636990977,1.98751158,3022.7,3021.3,0.16091001]
[1769636992388,5.19009426,3022.7,3021.3,0.16091001]
[1769636992688,3.20258268,3022.6,3021.3,0.16091001]
[1769636992888,3.20258268,3022.5,3021.3,0.16091001]
[1769636993181,3.20258268,3022.4,3021.3,0.16091001]
[1769636993388,1.98751158,3022.7,3021.3,0.16091001]
[1769636997001,5.19005858,3022.6,3021.3,0.16091001]
[1769636997196,3.202547,3022.5,3021.3,0.16091001]
[1769636997401,3.202547,3022.4,3021.3,0.16091001]
[1769636997599,1.98751158,3022.7,3021.3,0.16091001]
[1769636999093,5.19010955,3022.7,3021.3,0.16091001]
[1769636999294,3.20259797,3022.6,3021.3,0.16091001]
[1769636999598,3.20259797,3022.5,3021.3,0.16091001]
[1769636999798,3.20259797,3022.4,3021.3,0.16091001]
[1769637000000,1.98751158,3022.7,3021.3,0.16091001]
[1769637002602,29.80146919,3022.8,3021.7,0.16256969]
[1769637002603,0.00415953,3022.8,3021.7,0.16256969]
[1769637002791,1.98751158,3023.2,3022.1,0.16256969]
[1769637002993,15.30688251,3023.7,3022.5,0.16353726]
[1769637002994,1.98751158,3023.4,3022.5,0.16353726]
[1769637003203,1.98751158,3023.8,3022.5,0.16353726]
[1769637003500,3.19687947,3023.7,3022.5,0.16353726]
[1769637003704,3.19687947,3023.6,3022.5,0.16353726]
[1769637003902,0.00300985,3023.6,3022.5,0.16353726]
[1769637014109,1.98751158,3024.5,3022.5,0.16353726]
[1769637014307,3.18520509,3024.4,3022.6,0.16208187]
[1769637014509,2.15306158,3024.6,3022.6,0.16208187]
[1769637014706,3.18514289,3024.5,3022.7,0.16208187]
[1769637015007,0.00359392,3024.5,3022.7,0.16208187]
[1769637015210,0.00359392,3024.5,3022.9,0.16236741]
[1769637015410,0.00359392,3024.5,3023.1,0.16236741]
[1769637019615,1.05184979,3024.4,3023.2,0.16091882]
[1769637023812,1.05544371,3024.5,3023.2,0.16091882]
[1769637024016,1.05544371,3024.5,3023.4,0.16130774]
[1769637024916,0.00359392,3024.5,3023.4,0.16130774]
[1769637025807,1.05544371,3024.5,3023.4,0.16130774]
[1769637030019,1.05184979,3024.3,3023.4,0.16130774]
[1769637030220,1.05184979,3023.9,3023.1,0.1603001]
[1769637030721,1.05184979,3024.1,3023.1,0.1603001]
[1769637031122,1.05184979,3023.9,3023.1,0.1603001]
[1769637032420,1.05184979,3023.5,3022.9,0.00321043]
[1769637032818,1.05184979,3023.5,3022.9,0.1690423]
[1769637033214,1.05184979,3023.7,3022.9,0.1690423]
[1769637034418,1.05184979,3023.1,3022.2,0.16659663]
[1769637034621,1.05184979,3022.9,3022.2,0.16659663]
[1769637035425,1.05184979,3022.9,3022.2,0.16913449]
[1769637035618,1.05184979,3022.9,3022.2,0.00253786]
[1769637036317,1.05184979,3022.7,3022.2,0.00253786]
[1769637036620,1.05184979,3022.7,3021.8,0.16608918]
[1769637037029,1.05184979,3022.3,3021.6,1.942]
[1769637037320,1.05184979,3023.1,3021.7,0.16627696]
[1769637037321,1.05184979,3022.7,3021.7,0.16627696]
[1769637037626,1.0560517,3022.7,3021.7,0.16916203]
[1769637038327,0.00420191,3022.7,3021.7,0.16916203]
[1769637040820,1.0560517,3022.7,3021.7,0.16916203]